[Event "Reykjavik Open 2024"]
[Site "Reykjavik"]
[Date "2024.03.16"]
[Round "3.45"]
[White "Anishka Vikram"]
[Black "Kazarian, Anna-Maja"]
[Result "1/2-1/2"]
[ECO "D14"]
[WhiteElo "1995"]
[BlackElo "2206"]
[Annotator "RC"]
[PlyCount "94"]
[EventDate "2024.03.12"]
[EventCountry "ISL"]
[SourceTitle "playchess.com"]
[Source "ChessBase"]
[SourceQuality "1"]
[TimeControl "40/5400+30:1800+30"]

1. d4 {[%emt 0:00:06]} d5 {[%emt 0:00:03]} 2. c4 {[%emt 0:00:13]} c6 {[%emt 0:00:03]} 3. cxd5 {[%emt 0:00:16]} cxd5 {[%emt 0:00:05]} 4. Nc3 {[%emt 0:00:15]} Nf6 {[%emt 0:00:20]} 5. Bf4 {[%emt 0:00:14]} Nc6 {[%emt 0:00:37]} 6. e3 {[%emt 0:00:17]} Bg4 {[%emt 0:00:34]} 7. Qb3 {[%emt 0:05:42]} Na5 {[%emt 0:04:39]} 8. Qa4+ {[%emt 0:01:03]} Bd7 {[%emt 0:00:20]} 9. Qc2 {[%emt 0:12:50]} Rc8 {[%emt 0:01:16]} 10. Bd3 {[%emt 0:02:01]} e6 {[%emt 0:05:09]} 11. Nf3 {[%emt 0:06:24]} b5 {[%emt 0:06:08]} 12. a3 {[%emt 0:06:12]} Nc4 {[%emt 0:02:49]} 13. O-O {[%emt 0:06:06]} Be7 {[%emt 0:06:52]} 14. Qe2 {[%emt 0:08:41]} O-O {[%emt 0:05:32]} 15. b3 {[%emt 0:05:24]} Nxa3 {[%emt 0:00:44]} 16. Nxb5 {[%emt 0:00:22]} Bxb5 {[%emt 0:00:44]} 17. Bxb5 {[%emt 0:00:18]} Qb6 {[%emt 0:01:42]} 18. Ba4 {[%emt 0:01:47]} Rc2 {[%emt 0:02:08]} 19. Qd1 {[%emt 0:01:51]} Rfc8 {[%emt 0:01:15]} 20. Bg5 {[%emt 0:03:52]} Qb4 {[%emt 0:06:53]} 21. Ne5 {[%emt 0:04:48]} R2c3 {[%emt 0:31:57]} 22. Bxf6 {[%emt 0:14:30]} Bxf6 {[%emt 0:00:16]} 23. Nd3 {[%emt 0:00:12]} Qe7 {[%emt 0:00:55]} 24. b4 {[%emt 0:01:14]} Nc4 {[%emt 0:07:01]} 25. Nc5 {[%emt 0:00:37]} e5 {[%emt 0:01:18]} 26. dxe5 {[%emt 0:02:02]} Bxe5 {[%emt 0:01:03]} 27. Qxd5 {[%emt 0:09:00]} Nb6 {[%emt 0:03:37]} 28. Qf3 {[%emt 0:00:58]} Rc4 {[%emt 0:00:41]} 29. Rab1 {[%emt 0:03:45]} R4xc5 {[%emt 0:09:27]} 30. bxc5 {[%emt 0:00:07]} Nxa4 {[%emt 0:00:03]} 31. Qg4 {[%emt 0:00:25]} Qe8 {[%emt 0:00:04]} 32. Rb7 {[%emt 0:01:23]} a6 {[%emt 0:00:52]} 33. Qh4 {[%emt 0:03:22]} Bf6 {[%emt 0:00:43]} 34. Qc4 {[%emt 0:00:25]} Nxc5 {[%emt 0:01:04]} 35. Rc1 {[%emt 0:00:23]} g6 {[%emt 0:00:29]} 36. Rb6 {[%emt 0:00:15]} Kg7 {[%emt 0:00:33]} 37. Rxa6 {[%emt 0:00:31]} Nxa6 {[%emt 0:00:28]} 38. Qxc8 {[%emt 0:00:02]} Qb5 {[%emt 0:00:26]} 39. g3 {[%emt 0:00:30]} h5 {[%emt 0:00:30]} 40. Rc6 {[%emt 0:00:39]} Nb4 {[%emt 0:00:32]} 41. Rc7 {[%emt 0:30:19]} Nd3 {[%emt 0:08:47]} 42. Qb7 {[%emt 0:00:00]} Qe8 {[%emt 0:08:30]} 43. Qd5 {[%emt 0:00:00]} Ne5 {[%emt 0:01:17]} 44. f4 {[%emt 0:00:00]} Ng4 {[%emt 0:00:23]} 45. e4 {[%emt 0:00:00]} Ne3 {[%emt 0:02:39]} 46. Qd7 {[%emt 0:00:00]} Qxd7 {[%emt 0:03:53]} 47. Rxd7 {[%emt 0:00:00]} Kf8 {[%emt 0:00:23]} 1/2-1/2

[Event "Reykjavik Open 2024"]
[Site "Reykjavik"]
[Date "2024.03.17"]
[Round "4.1"]
[White "Sanal, Vahap"]
[Black "Nevednichy, Vladislav"]
[Result "1/2-1/2"]
[ECO "B45"]
[WhiteElo "2558"]
[BlackElo "2445"]
[Annotator "TA"]
[PlyCount "86"]
[EventDate "2024.03.12"]
[EventCountry "ISL"]
[SourceTitle "playchess.com"]
[Source "ChessBase"]
[SourceQuality "1"]
[TimeControl "40/5400+30:1800+30"]

{[%evp 9,86,12,22,14,7,29,11,6,9,25,22,22,15,7,20,20,18,13,14,14,10,10,37,30,26,17,20,20,15,8,15,0,1,0,2,2,39,10,16,16,17,13,16,18,22,9,11,6,17,17,21,20,17,15,13,12,19,12,12,12,18,5,6,6,5,0,0,0,0,0,0,0,0,0,0,0,0,0,0]} 1. e4 {[%emt 0:00:25]} c5 {[%emt 0:00:05]} 2. Nf3 {[%emt 0:00:10]} e6 {[%emt 0:00:11]} 3. d4 {[%emt 0:01:14]} cxd4 {[%emt 0:00:05]} 4. Nxd4 {[%emt 0:00:06]} Nf6 {[%emt 0:00:30]} 5. Nc3 {[%emt 0:00:34]} Nc6 {[%emt 0:00:16]} 6. Qd3 {[%emt 0:00:45]} d5 {[%emt 0:00:49]} 7. exd5 {[%emt 0:00:17]} Nb4 {[%emt 0:00:14]} 8. Qg3 {[%emt 0:00:18] [#] Bb5+ is the strong threat.} Bc5 {[%emt 0:00:31]} 9. a3 {[%emt 0:01:05] aiming for Bb5+.} ({But not} 9. Qxg7 Rg8 10. Bb5+ Ke7 11. d6+ Bxd6 $17 (11... Qxd6 12. Qxf6+ Kxf6 13. Ne4+ Ke7 14. Nxd6 $15)) 9... Nbxd5 {[%emt 0:01:03]} 10. Nxd5 {[%emt 0:00:32]} (10. Qxg7 $2 {perishes.} Rg8 11. Bb5+ Ke7 $19) 10... Qxd5 {[%emt 0:00:14]} 11. Nb5 {[%emt 0:00:19] Threatens to win with Nc7+.} (11. Qxg7 $2 {too greedy.} Qe5+ 12. Be2 Rg8 $19) 11... O-O {[%emt 0:01:45]} 12. Nc3 {[%emt 0:00:54] Wards off Ne4} Qd6 {[%emt 0:00:35][%cal Oh7h6]} 13. Bd3 {[%emt 0:02:10]} Qxg3 {[%emt 0:04:50]} 14. hxg3 {[%emt 0:00:25]} h6 {[%emt 0:42:32] Wards off Bg5} 15. f3 {[%emt 0:04:03]} Nd5 {[%emt 0:09:50]} 16. Nxd5 {[%emt 0:14:40]} exd5 {[%emt 0:00:03]} 17. g4 {[%emt 0:00:38]} Re8+ {[%emt 0:01:43]} 18. Kf1 {[%emt 0:00:22]} Bd4 {[%emt 0:02:30]} 19. Rh5 {[%emt 0:06:51]} Be6 {[%emt 0:00:50]} 20. g3 {[%emt 0:05:20]} f6 {[%emt 0:11:27]} 21. Rb1 {[%emt 0:05:40]} Bf7 {[%emt 0:01:00]} 22. Rh2 {[%emt 0:02:03]} Be3 {[%emt 0:00:18]} 23. Re2 {[%emt 0:04:59]} Bb6 {[%emt 0:02:41] The position is equal.} 24. Bd2 {[%emt 0:02:45]} Rxe2 {[%emt 0:00:04]} 25. Kxe2 {[%emt 0:00:09]} Re8+ {[%emt 0:00:13]} 26. Kf1 {[%emt 0:00:07]} g5 {[%emt 0:05:20]} 27. Re1 {[%emt 0:04:14]} Rxe1+ {[%emt 0:00:20]} 28. Kxe1 $11 {[%emt 0:01:35][%mdl 4096] Endgame. KBB-KBB} Bd4 {[%emt 0:00:27]} 29. c3 {[%emt 0:01:13]} Be5 {[%emt 0:00:22]} 30. Kf2 {[%emt 0:06:24]} Kf8 {[%emt 0:00:11]} 31. Be3 {[%emt 0:00:13]} b6 {[%emt 0:00:21]} 32. f4 {[%emt 0:05:12]} Bb8 {[%emt 0:00:56]} 33. Be2 {[%emt 0:02:11]} Ke7 {[%emt 0:00:47]} 34. Bf3 {[%emt 0:00:35]} Be6 {[%emt 0:00:55]} 35. Ke2 {[%emt 0:00:30]} Bd6 {[%emt 0:03:09]} 36. b4 {[%emt 0:00:28]} Bd7 {[%emt 0:00:27]} 37. Kd3 {[%emt 0:01:54]} Bc7 {[%emt 0:02:12]} 38. Kd4 {[%emt 0:01:28]} Kd6 {[%emt 0:00:24]} 39. Kd3 {[%emt 0:12:16]} Bb5+ {[%emt 0:00:16]} 40. Kd2 {[%emt 0:00:21]} Ke6 {[%emt 0:02:17]} 41. f5+ {[%emt 0:32:19]} Kd6 {[%emt 0:30:43]} 42. Bd4 {[%emt 0:00:18]} Bd8 {[%emt 0:00:51]} 43. Bd1 {[%emt 0:00:21]} Bc4 {[%emt 0:01:23] Weighted Error Value: White=0.03 (flawless) /Black=0.02 (flawless) .  Inaccurate:     	White=1     	Black=2      OK:         	White=17    	Black=23     Best:        	White=1     	Black=2} 1/2-1/2

[Event "Reykjavik Open 2024"]
[Site "Reykjavik"]
[Date "2024.03.17"]
[Round "4.2"]
[White "Injac, Teodora"]
[Black "Steingrimsson, Hedinn"]
[Result "0-1"]
[ECO "A08"]
[WhiteElo "2434"]
[BlackElo "2477"]
[Annotator "RC"]
[PlyCount "66"]
[EventDate "2024.03.12"]
[EventCountry "ISL"]
[SourceTitle "playchess.com"]
[Source "ChessBase"]
[SourceQuality "1"]
[TimeControl "40/5400+30:1800+30"]

1. Nf3 {[%emt 0:00:03]} d5 {[%emt 0:03:39]} 2. g3 {[%emt 0:00:31]} c5 {[%emt 0:08:55]} 3. Bg2 {[%emt 0:00:14]} g6 {[%emt 0:00:32]} 4. c4 {[%emt 0:02:53]} d4 {[%emt 0:01:20]} 5. b4 {[%emt 0:01:08]} Bg7 {[%emt 0:01:30]} 6. d3 {[%emt 0:02:57]} cxb4 {[%emt 0:01:38]} 7. a3 {[%emt 0:01:05]} bxa3 {[%emt 0:03:03]} 8. O-O {[%emt 0:03:25]} Nc6 {[%emt 0:00:24]} 9. Bxa3 {[%emt 0:13:56]} Nf6 {[%emt 0:01:33]} 10. Nbd2 {[%emt 0:02:17]} O-O {[%emt 0:01:31]} 11. Nb3 {[%emt 0:03:11]} Re8 {[%emt 0:03:13]} 12. Nfd2 {[%emt 0:01:50]} Qc7 {[%emt 0:04:41]} 13. Rb1 {[%emt 0:06:32]} Nd7 {[%emt 0:10:59]} 14. Bb2 {[%emt 0:27:58]} Ndb8 {[%emt 0:22:58]} 15. Nf3 {[%emt 0:08:04]} Rd8 {[%emt 0:05:26]} 16. Qc1 {[%emt 0:05:12]} Bf5 {[%emt 0:02:48]} 17. Re1 {[%emt 0:10:46]} a5 {[%emt 0:03:19]} 18. Nc5 {[%emt 0:04:39]} b6 {[%emt 0:03:40]} 19. Na4 {[%emt 0:00:22]} Na6 {[%emt 0:00:27]} 20. Nh4 {[%emt 0:01:01]} Be6 {[%emt 0:06:53]} 21. Ba3 {[%emt 0:00:54]} Rab8 {[%emt 0:00:26]} 22. Rb5 {[%emt 0:01:08]} Na7 {[%emt 0:02:37]} 23. Rb1 {[%emt 0:00:35]} Bd7 {[%emt 0:00:37]} 24. Qd1 {[%emt 0:00:36]} Nc6 {[%emt 0:00:10]} 25. Nf3 {[%emt 0:00:37]} Ncb4 {[%emt 0:00:45]} 26. e3 {[%emt 0:00:49]} Bxa4 {[%emt 0:03:54]} 27. Qxa4 {[%emt 0:00:02]} Nxd3 {[%emt 0:00:03]} 28. Re2 {[%emt 0:00:34]} Ndc5 {[%emt 0:00:01]} 29. Qb5 {[%emt 0:01:03]} d3 {[%emt 0:00:04]} 30. Rd2 {[%emt 0:00:15]} Nb4 {[%emt 0:01:12]} 31. Ng5 {[%emt 0:00:48]} Qe5 {[%emt 0:02:55]} 32. Ne4 {[%emt 0:00:02]} Nxe4 {[%emt 0:01:08]} 33. Qxe5 {[%emt 0:00:05]} Nxd2 {[%emt 0:00:20]} 0-1

[Event "Reykjavik Open 2024"]
[Site "Reykjavik"]
[Date "2024.03.17"]
[Round "4.3"]
[White "Seemann, Jakub"]
[Black "Lu, Maximillian"]
[Result "1-0"]
[ECO "A28"]
[WhiteElo "2451"]
[BlackElo "2375"]
[Annotator "TA"]
[PlyCount "63"]
[EventDate "2024.03.12"]
[EventCountry "ISL"]
[SourceTitle "playchess.com"]
[Source "ChessBase"]
[SourceQuality "1"]
[TimeControl "40/5400+30:1800+30"]

{[%evp 10,63,0,-13,10,0,14,12,10,15,16,20,16,17,19,9,44,6,32,16,6,0,28,0,16,0,58,69,44,12,91,97,89,91,177,163,325,309,311,281,361,335,666,660,693,683,754,755,729,718,1393,847,889,847,897,875]} 1. c4 {[%emt 0:01:15]} Nf6 {[%emt 0:01:01]} 2. Nc3 {[%emt 0:00:04]} e5 {[%emt 0:00:16]} 3. Nf3 {[%emt 0:00:08]} Nc6 {[%emt 0:00:08]} 4. d3 {[%emt 0:00:03]} d5 {[%emt 0:01:48]} 5. cxd5 {[%emt 0:00:06]} Nxd5 {[%emt 0:00:06]} 6. e4 {[%emt 0:00:36]} Nb6 {[%emt 0:04:33]} 7. Be2 {[%emt 0:01:19][%cal Bf1e2,Be2f3,Bf3g4][%mdl 32]} Bg4 {[%emt 0:02:09]} 8. Be3 {[%emt 0:07:29]} Bxf3 {[%emt 0:04:53] The position is equal.} 9. Bxf3 {[%emt 0:00:17]} Be7 {[%emt 0:00:24]} 10. O-O {[%emt 0:02:15]} O-O {[%emt 0:00:06]} 11. Rc1 {[%emt 0:02:25]} Nd4 {[%emt 0:11:21]} 12. Bg4 {[%emt 0:07:40]} c5 {[%emt 0:01:52]} 13. a4 {[%emt 0:04:35]} Rb8 {[%emt 0:05:18]} 14. Nb5 {[%emt 0:13:59][%cal Bc3b5,Bb5a3,Ba3c4][%mdl 32]} Nc6 {[%emt 0:08:00]} 15. Qb3 {[%emt 0:11:01]} a6 {[%emt 0:15:48]} 16. Na3 {[%emt 0:01:04]} Na5 {[%emt 0:00:09]} 17. Qc2 {[%emt 0:01:23]} Na8 {[%emt 0:03:26]} (17... Nc6 $11) 18. Nc4 {[%emt 0:12:00]} (18. Bxc5 Bxc5 19. Qxc5 Nb3 $17) 18... Nc6 {[%emt 0:02:25]} 19. a5 {[%emt 0:01:52]} Re8 {[%emt 0:05:16]} (19... b5 $1 $11 {remains equal.} 20. axb6 Nxb6) 20. f4 $16 {[%emt 0:08:02] White is more active.} exf4 {[%emt 0:10:25]} 21. Bxf4 {[%emt 0:00:10][%cal Be3f4,Bf4b8,Bb8g3][%mdl 32]} Bg5 {[%emt 0:01:07]} (21... b5 $16) 22. Bxb8 $18 {[%emt 0:02:30] This pair of bishops is nice.} Bxc1 $2 {[%emt 0:00:54] [#]} (22... Qd4+ 23. Qf2 Rxb8 24. Qxd4 Nxd4) 23. Bg3 {[%emt 0:00:30]} Bg5 {[%emt 0:01:07][%cal Bc1g5,Bg5e3,Be3c5][%mdl 32]} 24. Qb3 {[%emt 0:02:08]} Re7 {[%emt 0:11:52]} 25. Nd6 {[%emt 0:07:10]} Nxa5 $2 {[%emt 0:00:49] Black is weak on the light squares} (25... Bf6 26. Bh5 (26. Nxb7 Qd4+ 27. Bf2 c4 $18) 26... Nc7 27. Bxf7+ (27. Nxf7 Qd4+ 28. Bf2 c4 $18) 27... Kh8 28. Qxb7 (28. Nxb7 Qd7 $18) 28... Ne5 29. Bxe5 (29. Qc8 Qxc8 30. Nxc8 Rxf7 $18) 29... Rxe5) 26. Qd5 {[%emt 0:00:11][%cal Rf1f7] [#] White wants to mate with Rxf7! White is clearly winning.} Be3+ {[%emt 0:00:30]} 27. Kh1 {[%emt 0:00:01][%cal Rf1f7]} Nc7 {[%emt 0:02:37]} 28. Qa2 {[%emt 0:00:10][%cal Rd6f7] Strongly threatening Nxf7!} c4 {[%emt 0:05:35]} 29. Qxa5 {[%emt 0:00:28]} cxd3 {[%emt 0:00:01]} 30. Qc3 {[%emt 0:00:43]} Nb5 {[%emt 0:00:27]} 31. Qxd3 {[%emt 0:00:26]} Bc5 {[%emt 0:00:06]} 32. e5 {[%emt 0:00:08] Weighted Error Value: White=0.11 (very precise) /Black=0.55.  Mistake:       	---       	Black=5      Inaccurate:     	White=2     	Black=3      OK:         	White=6     	Black=8      Best:        	White=2     	---} 1-0

[Event "Reykjavik Open 2024"]
[Site "Reykjavik"]
[Date "2024.03.17"]
[Round "4.4"]
[White "Deac, Bogdan-Daniel"]
[Black "Mammadzada, Gunay"]
[Result "1/2-1/2"]
[ECO "D45"]
[WhiteElo "2690"]
[BlackElo "2449"]
[Annotator "RC"]
[PlyCount "132"]
[EventDate "2024.03.12"]
[EventCountry "ISL"]
[SourceTitle "playchess.com"]
[Source "ChessBase"]
[SourceQuality "1"]
[TimeControl "40/5400+30:1800+30"]

1. c4 {[%emt 0:00:02]} c6 {[%emt 0:02:35]} 2. Nf3 {[%emt 0:00:23]} d5 {[%emt 0:00:18]} 3. e3 {[%emt 0:00:24]} Nf6 {[%emt 0:00:10]} 4. Nc3 {[%emt 0:00:02]} e6 {[%emt 0:00:32]} 5. Qc2 {[%emt 0:05:20]} Bd6 {[%emt 0:02:35]} 6. d4 {[%emt 0:01:15]} Nbd7 {[%emt 0:00:37]} 7. Be2 {[%emt 0:11:26]} O-O {[%emt 0:02:21]} 8. b3 {[%emt 0:01:44]} e5 {[%emt 0:06:56]} 9. cxd5 {[%emt 0:02:19]} Nxd5 {[%emt 0:20:24]} 10. Nxd5 {[%emt 0:06:07]} cxd5 {[%emt 0:00:09]} 11. dxe5 {[%emt 0:00:07]} Nxe5 {[%emt 0:00:10]} 12. Bb2 {[%emt 0:00:29]} Nxf3+ {[%emt 0:09:45]} 13. Bxf3 {[%emt 0:00:29]} Bb4+ {[%emt 0:00:05]} 14. Kf1 {[%emt 0:01:24]} Qh4 {[%emt 0:12:01]} 15. Rd1 {[%emt 0:33:55]} Be6 {[%emt 0:02:21]} 16. Rd4 {[%emt 0:01:20]} Qe7 {[%emt 0:00:04]} 17. g3 {[%emt 0:08:56]} Rac8 {[%emt 0:00:49]} 18. Qb1 {[%emt 0:00:40]} Bc3 {[%emt 0:09:32]} 19. Bxc3 {[%emt 0:00:27]} Rxc3 {[%emt 0:03:57]} 20. Kg2 {[%emt 0:03:07]} Rfc8 {[%emt 0:01:31]} 21. Bxd5 {[%emt 0:03:32]} g6 {[%emt 0:10:22]} 22. Bxe6 {[%emt 0:03:08]} Qxe6 {[%emt 0:00:02]} 23. Rhd1 {[%emt 0:01:33]} Rc2 {[%emt 0:01:30]} 24. Rd8+ {[%emt 0:04:23]} Kg7 {[%emt 0:00:05]} 25. Rxc8 {[%emt 0:00:33]} Qxc8 {[%emt 0:00:12]} 26. Qa1+ {[%emt 0:00:12]} f6 {[%emt 0:04:47]} 27. Rd5 {[%emt 0:07:59]} Qg4 {[%emt 0:01:35]} 28. Qd4 {[%emt 0:02:28]} Qxd4 {[%emt 0:00:06]} 29. Rxd4 {[%emt 0:00:05]} Rxa2 {[%emt 0:00:04]} 30. Rd7+ {[%emt 0:00:04]} Kh6 {[%emt 0:00:07]} 31. Rxb7 {[%emt 0:00:13]} a5 {[%emt 0:00:51]} 32. g4 {[%emt 0:00:52]} g5 {[%emt 0:02:03]} 33. Kg3 {[%emt 0:00:22]} a4 {[%emt 0:00:40]} 34. bxa4 {[%emt 0:00:58]} Rxa4 {[%emt 0:00:02]} 35. h4 {[%emt 0:00:20]} gxh4+ {[%emt 0:03:16]} 36. Kxh4 {[%emt 0:00:13]} Re4 {[%emt 0:01:33]} 37. Rb3 {[%emt 0:01:31]} Kg6 {[%emt 0:00:48]} 38. f4 {[%emt 0:00:26]} Re7 {[%emt 0:01:00]} 39. Ra3 {[%emt 0:00:39]} Re8 {[%emt 0:00:29]} 40. Ra7 {[%emt 0:00:29]} Rxe3 {[%emt 0:02:45]} 41. f5+ {[%emt 0:30:04]} Kh6 {[%emt 0:30:04]} 42. Rf7 {[%emt 0:00:05]} Re1 {[%emt 0:00:00]} 43. Rxf6+ {[%emt 0:00:00]} Kg7 {[%emt 0:00:00]} 44. Ra6 {[%emt 0:00:00]} h6 {[%emt 0:00:00]} 45. Ra7+ {[%emt 0:00:00]} Kf6 {[%emt 0:00:00]} 46. Rh7 {[%emt 0:00:00]} Rh1+ {[%emt 0:00:00]} 47. Kg3 {[%emt 0:00:00]} Rg1+ {[%emt 0:00:00]} 48. Kf3 {[%emt 0:00:00]} Rh1 {[%emt 0:00:00]} 49. Rh8 {[%emt 0:00:00]} Kg7 {[%emt 0:00:00]} 50. Ra8 {[%emt 0:00:00]} Rf1+ {[%emt 0:00:00]} 51. Kg2 {[%emt 0:00:00]} Rf4 {[%emt 0:00:00]} 52. Kg3 {[%emt 0:00:00]} Rf1 {[%emt 0:00:00]} 53. Ra7+ {[%emt 0:00:00]} Kf6 {[%emt 0:00:00]} 54. Rh7 {[%emt 0:00:00]} Rg1+ {[%emt 0:00:00]} 55. Kf3 {[%emt 0:00:07]} Rh1 {[%emt 0:00:00]} 56. Rb7 {[%emt 0:00:44]} Rf1+ {[%emt 0:00:00]} 57. Kg2 {[%emt 0:00:10]} Rf4 {[%emt 0:00:00]} 58. Kg3 {[%emt 0:00:13]} Rf1 {[%emt 0:00:00]} 59. Rb6+ {[%emt 0:01:17]} Kg7 {[%emt 0:00:00]} 60. Rb7+ {[%emt 0:05:45]} Kf6 {[%emt 0:00:00]} 61. Rh7 {[%emt 0:00:11]} Rg1+ {[%emt 0:00:00]} 62. Kh3 {[%emt 0:00:06]} Rh1+ {[%emt 0:00:00]} 63. Kg2 {[%emt 0:00:02]} Rh4 {[%emt 0:00:00]} 64. Kf3 {[%emt 0:00:21]} Rh1 {[%emt 0:00:00]} 65. Kf2 {[%emt 0:01:20]} Rh4 {[%emt 0:00:21]} 66. Kf3 {[%emt 0:00:10]} Rh1 1/2-1/2

[Event "Reykjavik Open 2024"]
[Site "Reykjavik"]
[Date "2024.03.17"]
[Round "4.5"]
[White "Cramling Bellon, Anna"]
[Black "Gilsson, Asmund"]
[Result "1-0"]
[ECO "D47"]
[WhiteElo "2115"]
[BlackElo "1821"]
[Annotator "RC"]
[PlyCount "37"]
[EventDate "2024.03.12"]
[EventCountry "ISL"]
[SourceTitle "playchess.com"]
[Source "ChessBase"]
[SourceQuality "1"]
[TimeControl "40/5400+30:1800+30"]

1. d4 {[%emt 0:00:27]} d5 {[%emt 0:00:19]} 2. c4 {[%emt 0:00:20]} c6 {[%emt 0:00:21]} 3. Nc3 {[%emt 0:00:42]} Nf6 {[%emt 0:00:30]} 4. Nf3 {[%emt 0:01:04]} e6 {[%emt 0:00:27]} 5. e3 {[%emt 0:04:33]} Nbd7 {[%emt 0:01:01]} 6. Bd3 {[%emt 0:00:56]} dxc4 {[%emt 0:00:35]} 7. Bxc4 {[%emt 0:00:04]} b5 {[%emt 0:00:34]} 8. Bd3 {[%emt 0:00:10]} Bb7 {[%emt 0:00:37]} 9. a3 {[%emt 0:13:03]} Bd6 {[%emt 0:15:14]} 10. O-O {[%emt 0:03:43]} a6 {[%emt 0:05:16]} 11. b4 {[%emt 0:00:46]} a5 {[%emt 0:06:40]} 12. Bd2 {[%emt 0:03:04]} axb4 {[%emt 0:02:04]} 13. axb4 {[%emt 0:00:05]} O-O {[%emt 0:06:43]} 14. Qb3 {[%emt 0:25:35]} Qe7 {[%emt 0:05:45]} 15. e4 {[%emt 0:04:38]} e5 {[%emt 0:09:39]} 16. Ne2 {[%emt 0:07:38]} exd4 {[%emt 0:05:03]} 17. Rxa8 {[%emt 0:12:05]} Rxa8 {[%emt 0:01:48]} 18. Nexd4 {[%emt 0:00:27]} Nxe4 {[%emt 0:08:05]} 19. Nf5 {[%emt 0:05:33]} 1-0

[Event "Reykjavik Open 2024"]
[Site "Reykjavik"]
[Date "2024.03.17"]
[Round "4.6"]
[White "Belenkaya, Dina"]
[Black "Halldorsson, Kristjan"]
[Result "1-0"]
[ECO "D11"]
[WhiteElo "2164"]
[BlackElo "1887"]
[Annotator "RC"]
[PlyCount "81"]
[EventDate "2024.03.12"]
[EventCountry "ISL"]
[SourceTitle "playchess.com"]
[Source "ChessBase"]
[SourceQuality "1"]
[TimeControl "40/5400+30:1800+30"]

1. d4 {[%emt 0:06:57]} d5 {[%emt 0:00:14]} 2. c4 {[%emt 0:00:08]} c6 {[%emt 0:00:19]} 3. Nf3 {[%emt 0:00:09]} Nf6 {[%emt 0:00:28]} 4. Qb3 {[%emt 0:00:12]} e6 {[%emt 0:04:45]} 5. Bf4 {[%emt 0:08:09]} Bd6 {[%emt 0:02:33]} 6. Bxd6 {[%emt 0:02:17]} Qxd6 {[%emt 0:00:14]} 7. e3 {[%emt 0:02:24]} O-O {[%emt 0:03:02]} 8. Nc3 {[%emt 0:01:54]} Nbd7 {[%emt 0:05:00]} 9. Rd1 {[%emt 0:03:35]} b6 {[%emt 0:09:35]} 10. Be2 {[%emt 0:14:50]} Bb7 {[%emt 0:05:01]} 11. O-O {[%emt 0:03:09]} Rac8 {[%emt 0:03:42]} 12. cxd5 {[%emt 0:05:45]} exd5 {[%emt 0:05:32]} 13. Bd3 {[%emt 0:00:53]} Rfe8 {[%emt 0:08:24]} 14. Qa4 {[%emt 0:04:10]} Ra8 {[%emt 0:06:04]} 15. b4 {[%emt 0:03:45]} b5 {[%emt 0:05:14]} 16. Qa5 {[%emt 0:01:37]} a6 {[%emt 0:05:57]} 17. Ne2 {[%emt 0:02:22]} Ne4 {[%emt 0:02:51]} 18. Rc1 {[%emt 0:08:13]} h6 {[%emt 0:02:06]} 19. Rc2 {[%emt 0:07:34]} Qb8 {[%emt 0:06:28]} 20. Bxe4 {[%emt 0:01:27]} Rxe4 {[%emt 0:01:20]} 21. Nf4 {[%emt 0:00:19]} Re8 {[%emt 0:06:33]} 22. Nd3 {[%emt 0:00:19]} f6 {[%emt 0:02:14]} 23. Rfc1 {[%emt 0:01:50]} Qd8 {[%emt 0:02:38]} 24. Nc5 {[%emt 0:01:47]} Qxa5 {[%emt 0:01:08]} 25. bxa5 {[%emt 0:00:04]} Bc8 {[%emt 0:03:16]} 26. Nd3 {[%emt 0:00:13]} Nb8 {[%emt 0:01:01]} 27. Nb4 {[%emt 0:00:13]} Bd7 {[%emt 0:00:33]} 28. Nd2 {[%emt 0:00:10]} Kf7 {[%emt 0:03:09]} 29. Nb3 {[%emt 0:00:05]} Ke7 {[%emt 0:00:46]} 30. Nc5 {[%emt 0:00:11]} Rd8 {[%emt 0:01:09]} 31. Nxd7 {[%emt 0:05:47]} Kxd7 {[%emt 0:00:41]} 32. Kf1 {[%emt 0:00:18]} Kd6 {[%emt 0:02:23]} 33. Nxc6 {[%emt 0:01:13]} Rc8 {[%emt 0:01:10]} 34. Nb4 {[%emt 0:07:03]} Rxc2 {[%emt 0:00:06]} 35. Rxc2 {[%emt 0:00:22]} Ra7 {[%emt 0:01:38]} 36. Rc5 {[%emt 0:00:20]} Rc7 {[%emt 0:00:34]} 37. Rxc7 {[%emt 0:02:03]} Kxc7 {[%emt 0:00:09]} 38. Nxd5+ {[%emt 0:00:03]} Kd6 {[%emt 0:00:23]} 39. Nb4 {[%emt 0:00:06]} g6 {[%emt 0:01:01]} 40. e4 {[%emt 0:00:15]} h5 {[%emt 0:00:17]} 41. f4 {[%emt 0:09:06]} 1-0

[Event "Reykjavik Open 2024"]
[Site "Reykjavik"]
[Date "2024.03.17"]
[Round "4.7"]
[White "Chasin, Nico"]
[Black "Ivanchuk, Vasyl"]
[Result "1/2-1/2"]
[ECO "D14"]
[WhiteElo "2447"]
[BlackElo "2625"]
[Annotator "TA"]
[PlyCount "47"]
[EventDate "2024.03.12"]
[EventCountry "ISL"]
[SourceTitle "playchess.com"]
[Source "ChessBase"]
[SourceQuality "1"]
[TimeControl "40/5400+30:1800+30"]

{[%evp 16,47,28,5,29,33,31,31,28,37,38,33,26,-7,0,-22,-43,-52,0,0,8,11,13,0,32,35,30,21,49,11,14,0,0,5]} 1. Nf3 {[%emt 0:00:06]} d5 {[%emt 0:00:38]} 2. d4 {[%emt 0:00:06]} Nf6 {[%emt 0:00:04]} 3. c4 {[%emt 0:00:04]} c6 {[%emt 0:00:04]} 4. cxd5 {[%emt 0:00:06]} cxd5 {[%emt 0:00:04]} 5. Nc3 {[%emt 0:00:05]} Nc6 {[%emt 0:00:03]} 6. Bf4 {[%emt 0:00:05]} Bf5 {[%emt 0:00:50]} 7. e3 {[%emt 0:00:06]} e6 {[%emt 0:00:05]} 8. Qb3 {[%emt 0:00:53]} Bb4 {[%emt 0:01:36]} 9. Bb5 {[%emt 0:00:20]} Qe7 {[%emt 0:00:22]} 10. Ne5 {[%emt 0:07:32]} Rc8 {[%emt 0:01:40]} 11. Nxc6 {[%emt 0:00:42]} bxc6 {[%emt 0:00:07] White is slightly better.} 12. Ba6 {[%emt 0:00:03]} Rd8 {[%emt 0:00:27]} 13. a3 {[%emt 0:00:18]} Bd6 {[%emt 0:01:09]} 14. Qa4 {[%emt 0:01:57]} O-O {[%emt 0:14:33] Threatens to win with ...Bxf4.} 15. Qxc6 {[%emt 0:02:22]} Bxf4 {[%emt 0:10:42]} 16. exf4 {[%emt 0:00:49]} Ne4 {[%emt 0:09:16] Repels Qc5} (16... Rd6 $15 17. Qc5 Qd8) 17. Nxe4 $11 {[%emt 0:02:50]} dxe4 {[%emt 0:00:02]} 18. O-O {[%emt 0:00:32]} Rxd4 {[%emt 0:00:16]} 19. Rfd1 {[%emt 0:01:44]} Rfd8 {[%emt 0:03:08]} 20. Rxd4 {[%emt 0:00:14]} Rxd4 {[%emt 0:00:01]} 21. Qc3 {[%emt 0:00:52]} Qd8 {[%emt 0:08:10]} 22. Be2 {[%emt 0:02:43]} h5 {[%emt 0:05:20]} 23. Bxh5 {[%emt 0:05:06]} Rd3 {[%emt 0:00:02]} 24. Qc5 {[%emt 0:00:53] Weighted Error Value: White=0.10 (very precise) /Black=0.12 (very precise) .  Mistake:       	---       	Black=1      Inaccurate:     	White=2     	Black=2      OK:         	White=8     	Black=7} 1/2-1/2